bitfinex/quotes_SOLUSD_20250917
["timestamp","ask_amount","ask_price","bid_price","bid_amount"]
[1758070084720,0.06,236.49,236.48,0.67]
[1758070085045,0.06,236.49,236.47,32.46]
[1758070085232,0.06,236.49,236.47,33.13]
[1758070086237,0.7,236.48,236.46,0.03]
[1758070086414,2.7289343,236.48,236.46,0.03]
[1758070086744,2.0289343,236.48,236.47,32.44]
[1758070087234,2.7289343,236.48,236.47,32.44]
[1758070087731,2.0289343,236.48,236.47,32.44]
[1758070088029,2.7289343,236.48,236.47,32.44]
[1758070088840,0.7,236.48,236.47,32.44]
[1758070089032,2.7289343,236.48,236.47,32.44]
[1758070089336,2.0889343,236.49,236.47,32.44]
[1758070089907,0.06,236.49,236.47,32.44]
[1758070090337,2.0289343,236.48,236.47,32.44]
[1758070090508,6.31747542,236.49,236.47,32.44]
[1758070091317,0.06,236.49,236.48,0.67]
[1758070092311,0.06,236.49,236.47,32.44]
[1758070092517,0.06,236.49,236.46,0.03]
[1758070092729,0.76,236.49,236.47,32.44]
[1758070093235,0.76,236.49,236.46,0.03]
[1758070093236,0.76,236.49,236.48,32.44]
[1758070093539,0.06,236.49,236.48,32.44]
[1758070093748,0.06,236.49,236.48,33.11]
[1758070094324,0.06,236.49,236.48,32.44]
[1758070095134,4.2885086,236.49,236.48,32.44]
[1758070095343,0.06,236.49,236.48,32.44]
[1758070097542,0.06,236.49,236.48,33.11]
[1758070098750,0.06,236.49,236.48,32.44]
[1758070099266,0.06,236.49,236.48,33.11]
[1758070099854,0.06,236.49,236.48,37.33868741]
[1758070101440,7.01747047,236.49,236.48,32.44]
[1758070102049,7.01747047,236.49,236.46,0.03]
[1758070102253,2.0289343,236.47,236.46,0.03]
[1758070102555,2.0289343,236.47,236.46,32.47]
[1758070103145,2.0289343,236.47,236.46,0.03]
[1758070103346,2.0289343,236.47,236.46,32.47]
[1758070108257,6.25780054,236.47,236.46,32.47]
[1758070110741,7.05996211,236.47,236.46,0.03]
[1758070110946,7.20212368,236.47,236.46,0.03]
[1758070121866,6.47306807,236.47,236.46,0.03]
[1758070133978,5.81306807,236.47,236.46,0.03]
[1758070134157,6.47306807,236.47,236.46,0.03]
[1758070134558,5.81306807,236.47,236.46,0.03]
[1758070135667,6.49306807,236.47,236.46,0.03]
[1758070136683,5.81306807,236.47,236.46,0.03]
[1758070137980,5.81306807,236.47,236.46,0.74]
[1758070138478,26.0,236.48,236.46,0.74]
[1758070138687,1.35987869,236.49,236.46,0.74]
[1758070139359,0.06,236.49,236.46,0.74]
[1758070141281,5.58848869,236.49,236.46,0.74]
[1758070141482,5.58848869,236.49,236.47,0.71]
[1758070141689,1.29987869,236.48,236.46,0.03]
[1758070141862,27.29987869,236.48,236.47,0.71]
[1758070142991,5.5285661,236.48,236.47,0.71]
[1758070143678,1.35987869,236.49,236.47,0.71]
[1758070143887,1.35987869,236.49,236.48,0.71]
[1758070144490,5.58842609,236.49,236.46,0.74]
[1758070144796,1.29987869,236.48,236.47,0.71]
[1758070144987,1.29987869,236.48,236.46,0.03]
[1758070145375,0.06,236.49,236.46,0.03]
[1758070145581,0.06,236.49,236.47,0.71]
[1758070148477,0.06,236.49,236.48,0.71]
[1758070149291,5.58838729,236.49,236.46,0.03]
[1758070149494,1.29987869,236.47,236.46,0.03]
[1758070149688,4.2885086,236.49,236.46,0.74]
[1758070149886,1.29987869,236.47,236.46,0.03]
[1758070150302,5.52874493,236.47,236.46,0.03]
[1758070151301,4.22868741,236.48,236.46,0.03]
[1758070151500,1.29987869,236.47,236.46,0.03]
[1758070152803,1.29987869,236.47,236.46,0.74]
[1758070153500,5.5285661,236.48,236.46,0.74]
[1758070153798,1.35987869,236.49,236.47,0.71]
[1758070154097,0.06,236.49,236.47,0.71]
[1758070156498,0.06,236.49,236.47,0.74]
[1758070161994,0.06,236.49,236.47,6.26870565]
[1758070162194,0.06,236.49,236.48,39.59559401]
[1758070162404,0.06,236.49,236.48,41.31834144]
[1758070162588,0.06,236.49,236.48,42.02834144]
[1758070164510,0.06,236.49,236.48,46.25702885]
[1758070165797,0.06,236.49,236.48,78.25416011]
[1758070167507,0.06,236.49,236.48,44.53428142]
[1758070167708,0.06,236.49,236.48,78.25416011]
[1758070168109,0.06,236.49,236.48,149.55416011]
[1758070169818,0.06,236.49,236.48,78.25416011]
[1758070170019,0.06,236.49,236.48,78.67702885]
[1758070172118,0.06,236.49,236.48,46.25702885]
[1758070172298,0.06,236.49,236.48,78.67702885]
[1758070172500,0.06,236.49,236.48,46.25702885]
[1758070172705,0.06,236.49,236.48,78.25416011]
[1758070179113,0.06,236.49,236.48,78.53848325]
[1758070180138,0.06,236.49,236.48,149.83848325]
[1758070183806,0.06,236.49,236.48,150.56703778]
[1758070185832,0.06,236.49,236.48,118.14703778]
[1758070186036,0.06,236.49,236.48,150.56703778]
[1758070186209,0.06,236.49,236.48,118.14703778]
[1758070186412,0.06,236.49,236.48,150.56703778]
[1758070186728,0.76,236.49,236.47,0.03]
[1758070186918,0.76,236.49,236.48,32.42]
[1758070187119,2.78843322,236.49,236.48,32.42]
[1758070187645,0.76,236.49,236.48,32.42]
[1758070188336,2.78843322,236.49,236.47,0.03]
[1758070188639,2.02843322,236.48,236.47,0.03]
[1758070189016,2.72843322,236.48,236.47,32.57]
[1758070189817,2.72843322,236.48,236.47,0.03]
[1758070190025,2.72843322,236.48,236.47,32.57]
[1758070197733,0.7,236.48,236.47,32.57]
[1758070198040,2.72843322,236.48,236.47,32.57]
[1758070199153,0.06,236.49,236.47,33.24]
[1758070199326,0.06,236.49,236.48,0.67]
[1758070200453,0.06,236.49,236.47,37.46878403]
[1758070200753,2.74843322,236.48,236.47,0.03]
[1758070201052,2.74843322,236.48,236.47,32.57]
[1758070202530,6.97712063,236.48,236.47,32.57]
[1758070203044,6.25712063,236.48,236.47,32.57]
[1758070203245,6.97712063,236.48,236.47,0.03]
[1758070203554,6.97712063,236.48,236.47,32.57]
[1758070205038,4.94868741,236.48,236.47,32.57]
[1758070205219,2.02843322,236.48,236.47,32.57]
[1758070205421,0.06,236.49,236.47,33.24]
[1758070206438,0.06,236.48,236.47,33.24]
[1758070207230,0.06,236.48,236.47,32.57]
[1758070207636,7.03712063,236.48,236.47,0.03]
[1758070207827,7.03712063,236.48,236.47,32.57]
[1758070209146,7.03712063,236.48,236.47,0.03]
[1758070210348,22.945471,236.48,236.47,0.03]
[1758070210652,41.90835037,236.46,236.45,1e-08]
[1758070211017,42.62835037,236.46,236.45,1e-08]
[1758070211644,46.85739545,236.46,236.45,1e-08]
[1758070212622,0.28432314,236.45,236.36,0.03]
[1758070212826,15.90835037,236.43,236.36,0.03]
[1758070213323,16.62835037,236.43,236.36,0.03]
[1758070213523,13.87991715,236.42,236.36,0.03]
[1758070213743,20.13811096,236.42,236.36,0.03]
[1758070213922,20.85811096,236.42,236.36,0.03]
[1758070215035,15.90835037,236.41,236.36,0.03]
[1758070215441,16.62835037,236.41,236.36,0.03]
[1758070215749,26.0,236.38,236.36,0.03]
[1758070215947,28.02843322,236.38,236.36,0.03]
[1758070216127,28.74843322,236.38,236.36,0.03]
[1758070216549,2.74843322,236.38,236.36,0.03]
[1758070216754,2.02843322,236.38,236.36,0.03]
[1758070216931,6.54323271,236.38,236.36,0.03]
[1758070217131,4.51479949,236.38,236.36,0.03]
[1758070217330,26.0,236.39,236.37,0.7]
[1758070217534,2.02843322,236.38,236.37,0.7]
[1758070217739,2.02843322,236.38,236.37,0.03]
[1758070218350,28.02843322,236.38,236.37,0.03]
[1758070219048,32.25890957,236.38,236.37,0.03]
[1758070219236,32.97890957,236.38,236.37,0.03]
[1758070220162,32.25890957,236.38,236.37,0.03]
[1758070221634,32.97890957,236.38,236.37,0.03]
[1758070221956,32.25890957,236.38,236.37,0.03]
[1758070225455,32.95890957,236.38,236.37,0.03]
[1758070226041,32.25890957,236.38,236.37,0.03]
[1758070237562,32.25890957,236.38,236.37,0.7]
[1758070238160,32.25890957,236.38,236.37,0.03]
[1758070239151,32.25890957,236.38,236.37,0.7]
[1758070239553,32.25890957,236.38,236.37,0.03]
[1758070239756,32.25890957,236.38,236.37,0.7]
[1758070240463,32.25890957,236.38,236.37,0.03]
[1758070243349,30.23047635,236.38,236.37,0.03]
[1758070243556,28.02843322,236.38,236.37,0.7]
[1758070243750,0.06,236.39,236.37,0.7]
[1758070243954,1.36057466,236.39,236.37,0.7]
[1758070244164,0.06,236.39,236.37,0.7]
[1758070249854,0.06,236.39,236.37,2.00057466]
[1758070250077,0.06,236.39,236.38,33.78057466]
[1758070250370,0.06,236.39,236.38,34.45057466]
[1758070252560,0.06,236.39,236.38,33.15]
[1758070253570,0.06,236.39,236.38,0.67]
[1758070253887,0.06,236.39,236.37,0.03]
[1758070254058,1.36057466,236.39,236.38,32.5]
[1758070255963,5.59087204,236.39,236.38,32.5]
[1758070256285,6.31087204,236.39,236.37,0.03]
[1758070256582,1.30057466,236.38,236.37,0.03]
[1758070256966,2.02057466,236.38,236.37,0.03]
[1758070257869,32.25105101,236.38,236.37,0.03]
[1758070258267,32.53537415,236.38,236.37,0.03]
[1758070258472,0.28432314,236.37,236.34,0.03]
[1758070258673,32.78719644,236.35,236.32,0.03]
[1758070258978,1.30057466,236.33,236.32,0.03]
[1758070259182,4.42000495,236.33,236.32,0.03]
[1758070259486,5.14000495,236.33,236.32,0.03]
[1758070259666,28.3048978,236.33,236.32,0.03]
[1758070259986,35.37137633,236.33,236.32,0.03]
[1758070260379,48.96697034,236.33,236.32,0.03]
[1758070260583,0.28432314,236.32,236.24,0.2]
[1758070260884,5.14000495,236.32,236.24,0.2]
[1758070261267,31.13744669,236.32,236.24,0.2]
[1758070262181,26.0,236.28,236.24,0.2]
[1758070262377,1.30057466,236.25,236.24,0.2]
[1758070264160,5.53337889,236.25,236.24,0.2]
[1758070267172,6.53770203,236.25,236.24,0.2]
[1758070268282,5.81770203,236.25,236.24,0.2]
[1758070269182,0.28432314,236.25,236.24,0.2]
[1758070269394,1.5848978,236.25,236.24,0.2]
[1758070269897,2.3048978,236.25,236.24,0.2]
[1758070270987,1.5848978,236.25,236.24,0.87]
[1758070271685,1.5848978,236.25,236.24,0.2]
[1758070272087,1.30057466,236.25,236.24,0.2]
[1758070272293,27.30057466,236.25,236.24,0.87]
[1758070273301,27.30057466,236.25,236.24,0.2]
[1758070275079,28.02057466,236.25,236.24,0.2]
[1758070275479,28.3048978,236.25,236.24,0.2]
[1758070276275,2.3048978,236.25,236.24,0.2]
[1758070276576,28.3048978,236.25,236.24,0.2]
[1758070276782,2.3048978,236.25,236.24,0.2]
[1758070276994,28.3048978,236.25,236.24,0.2]
[1758070280574,34.74900902,236.25,236.24,0.2]
[1758070280775,58.92661361,236.25,236.21,0.13]
[1758070280977,39.59559401,236.19,236.11,0.1]
[1758070281183,1.12999999,236.01,236.0,100.1]
[1758070281393,2.43057465,236.01,236.0,100.1]
[1758070282223,2.71489779,236.01,236.0,100.1]
[1758070282376,2.43057465,236.01,236.0,100.1]
[1758070282683,1.12999999,236.01,236.0,100.1]
[1758070286204,1.12999999,236.01,236.0,132.94]
[1758070286713,1.30057466,236.05,236.0,100.1]
[1758070286888,1.30057466,236.05,236.0,132.92]
[1758070290803,1.30057466,236.08,236.02,1.30057466]
[1758070290988,1.30057466,236.1,236.03,1.30057466]
[1758070291186,1.30057466,236.1,236.03,34.10057466]
[1758070291487,1.30057466,236.09,236.03,34.10057466]
[1758070292084,1.30057466,236.09,236.03,32.8]
[1758070292482,26.0,236.1,236.03,37.03663029]
[1758070292698,27.30057466,236.1,236.03,38.33720495]
[1758070292896,26.0,236.1,236.04,1.30057466]
[1758070293698,26.0,236.1,236.04,5.53706552]
[1758070294409,26.0,236.1,236.04,4.23649086]
[1758070294611,26.0,236.1,236.04,5.53706552]
[1758070295192,27.30057466,236.09,236.04,4.23649086]
[1758070295691,1.30057466,236.09,236.04,4.23649086]
[1758070296315,1.30057466,236.09,236.03,34.10057466]
[1758070296604,1.30057466,236.09,236.04,32.78]
[1758070297593,4.29552867,236.1,236.01,0.03]
[1758070297800,1.30057466,236.07,236.02,32.78]
[1758070298187,27.30057466,236.09,236.02,34.08057466]
[1758070298594,26.0,236.09,236.03,1.30057466]
[1758070299104,27.30057466,236.09,236.03,1.30057466]
[1758070299298,27.30057466,236.09,236.01,4.26707117]
[1758070299504,1.30057466,236.07,236.02,32.78]
[1758070299710,27.30057466,236.09,236.02,34.75057466]
[1758070299914,27.30057466,236.09,236.02,38.98744225]
[1758070300095,31.53631009,236.09,236.03,32.78]
[1758070300289,1.30057466,236.09,236.03,32.78]
[1758070300712,31.53631162,236.09,236.03,32.78]
[1758070301602,31.53631162,236.09,236.03,34.08057466]
[1758070302018,30.23573696,236.09,236.03,34.08057466]
[1758070302195,30.23573696,236.09,236.03,32.78]
[1758070302408,30.23573696,236.09,236.01,4.93700468]
[1758070302409,1.30057466,236.07,236.04,32.78]
[1758070302721,26.95432314,236.06,236.05,32.78]
[1758070302920,28.2548978,236.06,236.05,32.78]
[1758070303210,2.2548978,236.06,236.05,32.78]
[1758070303795,4.23639059,236.05,236.04,32.78]
[1758070304000,5.53696525,236.05,236.04,32.78]
[1758070304613,4.23639059,236.05,236.04,32.78]
[1758070304810,1.5848978,236.06,236.04,32.78]
[1758070305010,11.25918209,236.09,236.04,32.78]
[1758070305011,5.53640149,236.09,236.04,32.78]
[1758070305600,1.30057466,236.08,236.04,32.78]
[1758070305813,4.90582683,236.09,236.05,32.78]
[1758070305814,26.0,236.06,236.05,32.78]
[1758070306824,30.23621113,236.06,236.05,32.78]
[1758070309103,2.03743922,236.09,236.05,32.78]
[1758070309306,0.95432314,236.09,236.05,32.78]
[1758070309502,26.0,236.06,236.05,33.45]
[1758070309814,4.5200485,236.09,236.05,33.45]
[1758070310020,26.0,236.08,236.05,32.78]
[1758070310713,30.5200485,236.09,236.05,32.78]
[1758070310905,26.0,236.08,236.05,33.45]
[1758070311109,26.0,236.08,236.05,32.78]
[1758070312517,4.29554599,236.1,236.05,32.78]
[1758070312518,26.0,236.09,236.05,39.72379931]
[1758070312728,26.0,236.09,236.06,2.03743922]
[1758070312908,26.0,236.09,236.07,32.76]
[1758070313109,26.67,236.09,236.07,32.76]
[1758070313498,0.67,236.09,236.07,32.76]
[1758070314108,6.3329806,236.1,236.07,32.76]
[1758070314299,4.23572449,236.09,236.07,32.76]
[1758070314504,0.06,236.1,236.07,32.76]
[1758070314505,26.06,236.1,236.07,32.76]
[1758070315725,30.29556163,236.1,236.07,32.76]
[1758070315914,26.06,236.1,236.07,32.76]
[1758070316714,30.29562148,236.1,236.07,32.76]
[1758070317118,30.95562148,236.1,236.07,32.76]
[1758070317514,30.95562148,236.1,236.04,4.92653992]
[1758070317715,0.06,236.1,236.07,2.03743922]
[1758070317901,0.06,236.1,236.08,34.79743922]
[1758070318115,0.06,236.1,236.08,32.76]
[1758070318506,0.06,236.1,236.05,2.03743922]
[1758070318714,0.66,236.09,236.06,32.78]
[1758070319123,0.06,236.1,236.06,32.78]
[1758070319321,0.72,236.1,236.06,32.78]
[1758070319823,4.95549572,236.1,236.06,32.78]
[1758070320209,0.94432314,236.09,236.03,2.03743922]
[1758070320426,0.94432314,236.09,236.04,32.78]
[1758070320427,0.66,236.08,236.04,32.78]
[1758070320612,2.32176236,236.09,236.04,33.44]
[1758070320813,0.06,236.1,236.06,2.03743922]
[1758070321022,0.06,236.1,236.07,2.69743922]
[1758070321239,26.0,236.09,236.08,32.78]
[1758070322334,26.06,236.1,236.06,2.03743922]
[1758070322644,26.06,236.1,236.07,35.47743922]
[1758070322951,0.06,236.1,236.08,0.66]
[1758070323107,26.06,236.1,236.07,34.81743922]
[1758070323308,26.06,236.1,236.07,35.47743922]
[1758070323825,33.59559401,236.01,236.0,65.49569525]
[1758070324022,69.49011525,236.01,236.0,1e-08]
[1758070324332,33.59559401,235.99,235.91,0.1]
[1758070324529,2.03743922,235.94,235.91,0.1]
[1758070325111,2.82880622,235.93,235.91,0.1]
[1758070325421,4.86579463,235.93,235.91,0.1]
[1758070325618,2.03743922,235.93,235.91,0.1]
[1758070326021,4.86579463,235.93,235.91,0.1]
[1758070326219,2.32176236,235.92,235.91,0.1]
[1758070326415,30.52304813,235.92,235.91,0.1]
[1758070326628,35.38709721,235.92,235.91,0.1]
[1758070330545,32.56048735,235.92,235.91,0.1]
[1758070331844,32.56048735,235.92,235.91,0.13]
[1758070332219,32.56048735,235.92,235.81,0.1]
[1758070332220,13.87991715,235.91,235.88,0.03]
[1758070332424,26.0,235.89,235.88,0.03]
[1758070332621,28.81598228,235.89,235.88,0.03]
[1758070332821,32.13983756,235.94,235.88,0.03]
[1758070332822,0.14216157,235.96,235.88,0.69]
[1758070333043,2.03743922,235.91,235.88,0.69]
[1758070333232,2.03743922,235.89,235.88,0.69]
[1758070333928,4.23839807,235.94,235.88,0.69]
[1758070334244,6.27670328,235.89,235.88,0.69]
[1758070335236,28.03743922,235.89,235.88,0.69]
[1758070336842,28.03743922,235.89,235.88,0.03]
[1758070337048,28.03743922,235.89,235.88,0.69]
[1758070338129,28.03743922,235.89,235.88,0.03]
[1758070338440,28.03743922,235.89,235.88,0.69]
[1758070342960,2.03743922,235.89,235.88,0.03]
[1758070343842,2.03743922,235.89,235.88,0.69]
[1758070344968,2.03743922,235.89,235.88,0.03]
[1758070345162,2.32176236,235.89,235.88,0.03]
[1758070345545,28.32176236,235.89,235.88,0.03]
[1758070347550,28.32176236,235.89,235.88,0.75]
[1758070347747,2.03743922,235.89,235.88,0.75]
[1758070348046,28.03743922,235.89,235.88,0.75]
[1758070348748,2.03743922,235.89,235.88,0.75]
[1758070348938,28.03743922,235.89,235.88,0.75]
[1758070349643,2.03743922,235.89,235.88,0.75]
[1758070349826,28.03743922,235.89,235.88,0.75]
[1758070350026,0.06,235.91,235.88,0.75]
[1758070356938,0.06,235.91,235.88,35.07]
[1758070357141,0.06,235.91,235.88,39.30939389]
[1758070357345,0.06,235.91,235.89,0.72]
[1758070358270,0.06,235.91,235.89,4.959223]
[1758070358645,0.06,235.91,235.9,0.72]
[1758070359339,0.06,235.91,235.9,4.95908435]
[1758070360256,0.06,235.91,235.9,6.99652357]
[1758070360563,0.06,235.91,235.9,4.95908435]
[1758070360763,0.06,235.91,235.9,6.99652357]
[1758070365451,0.06,235.91,235.9,4.95908435]
[1758070365652,0.06,235.91,235.9,6.99652357]
[1758070365971,0.06,235.91,235.9,6.26402828]
[1758070366977,0.06,235.91,235.9,18.55467836]
[1758070367156,0.06,235.91,235.9,19.85962229]
[1758070368157,0.06,235.91,235.9,45.85962229]
[1758070369459,0.06,235.91,235.9,48.45559401]
[1758070369662,0.06,235.91,235.9,4.95908435]
[1758070369954,0.06,235.91,235.9,39.07908435]
[1758070370161,0.06,235.91,235.9,0.72]
[1758070370370,0.06,235.91,235.9,34.84]
[1758070371552,0.06,235.91,235.9,0.72]
[1758070371753,0.06,235.91,235.9,39.05908435]
[1758070372453,0.06,235.91,235.9,4.95908435]
[1758070372666,0.06,235.91,235.9,39.03908435]
[1758070373153,0.06,235.91,235.9,4.95908435]
[1758070373347,0.06,235.91,235.9,39.03908435]
[1758070373570,0.06,235.91,235.9,40.34402828]
[1758070374576,0.06,235.91,235.9,53.93962229]
[1758070376670,0.06,235.94,235.91,13.59559401]
[1758070376870,0.06,235.94,235.93,14.90053794]
[1758070377380,0.06,235.94,235.93,19.82908327]
[1758070378979,0.06,235.94,235.93,20.11340641]
[1758070379177,0.06,235.96,235.95,1.30494393]
[1758070379489,0.06,235.96,235.95,48.90053794]
[1758070379675,0.06,235.96,235.95,49.59053794]
[1758070379994,0.06,235.96,235.95,62.34071555]
[1758070380157,0.06,235.96,235.95,66.5789016]
[1758070380758,0.06,235.96,235.95,65.27395767]
[1758070381075,0.06,235.96,235.95,66.5789016]
[1758070384682,1.30494393,236.08,235.95,77.45868988]
[1758070384875,0.1,236.09,236.04,1.30494393]
[1758070385085,0.1,236.09,236.05,35.22494393]
[1758070385259,0.1,236.09,236.06,1.30494393]
[1758070385465,0.1,236.09,236.07,33.92]
[1758070385665,0.1,236.09,236.07,35.22494393]
[1758070386983,0.1,236.09,236.08,1.30494393]
[1758070387165,0.1,236.09,236.08,6.23079618]
[1758070389184,0.1,236.09,236.08,19.82639019]
[1758070389568,0.1,236.09,236.08,53.70639019]
[1758070389971,0.16,236.09,236.08,19.82639019]
[1758070390316,0.16,236.09,236.08,53.68639019]
[1758070391182,0.16,236.09,236.08,52.99639019]
[1758070391378,0.16,236.09,236.08,53.68639019]
[1758070391581,0.16,236.09,236.08,19.82639019]
[1758070391975,0.16,236.09,236.08,53.66639019]
[1758070393474,0.16,236.09,236.08,39.38079618]
[1758070393694,0.16,236.09,236.08,39.36079618]
[1758070394082,0.16,236.09,236.08,40.05079618]
[1758070396095,0.16,236.09,236.08,53.64639019]
[1758070396883,0.16,236.09,236.08,18.52144626]
[1758070397097,0.16,236.09,236.08,53.60639019]
[1758070397285,0.16,236.09,236.08,19.82639019]
[1758070397478,0.16,236.09,236.08,53.62639019]
[1758070399295,0.16,236.09,236.08,19.82639019]
[1758070399599,0.16,236.09,236.08,53.60639019]
[1758070399969,0.16,236.09,236.08,53.89071333]
[1758070400313,1e-08,236.1,236.09,13.87991715]
[1758070400489,1e-08,236.1,236.09,15.87486108]
[1758070401704,1e-08,236.1,236.09,52.28126684]
[1758070402018,1e-08,236.1,236.09,53.58621077]
[1758070404019,1e-08,236.1,236.09,53.87053391]
[1758070405413,0.06,236.12,236.11,39.87991715]
[1758070405598,0.06,236.12,236.11,74.88486108]
[1758070405807,0.06,236.13,236.12,13.59559401]
[1758070406004,0.06,236.13,236.12,15.59053794]
[1758070406590,0.06,236.13,236.12,19.82567261]
[1758070406811,0.06,236.13,236.12,53.50567261]
[1758070407391,0.06,236.13,236.12,53.78999575]
[1758070408219,0.1,236.19,236.14,39.59559401]
[1758070408412,0.1,236.19,236.18,27.30494393]
[1758070408613,0.1,236.19,236.18,31.53900269]
[1758070408915,0.1,236.19,236.18,65.21900269]
[1758070410625,0.1,236.19,236.18,31.53900269]
[1758070410805,0.1,236.19,236.18,65.19900269]
[1758070411004,0.1,236.19,236.18,31.53900269]
[1758070411200,0.1,236.19,236.18,34.94494393]
[1758070412909,0.1,236.19,236.18,39.17900269]
[1758070413703,0.1,236.19,236.18,5.53900269]
[1758070413907,0.1,236.19,236.18,39.17900269]
[1758070415210,0.1,236.19,236.18,39.15900269]
[1758070417723,0.1,236.19,236.18,39.11900269]
[1758070418308,1.15894307,236.19,236.18,39.11900269]
[1758070420511,1.15894307,236.19,236.18,5.53900269]
[1758070420708,1.15894306,236.19,236.18,39.07900269]
[1758070422644,1.15894306,236.19,236.17,5.53917792]
[1758070422805,1.05894306,236.18,236.16,1.30494393]
[1758070423000,0.1,236.19,236.16,1.30494393]
[1758070423001,1.05894306,236.17,236.16,1.30494393]
[1758070423206,1.05894306,236.17,236.16,34.80494393]
[1758070424032,1.05894306,236.17,236.16,39.03936127]
[1758070424431,1.05894306,236.17,236.16,39.72936127]
[1758070424621,1.05894306,236.17,236.16,39.03936127]
[1758070425734,1.05894306,236.17,236.16,4.23441734]
[1758070426052,0.1,236.19,236.16,33.46]
[1758070426340,1.05901876,236.18,236.16,37.69435497]
[1758070426641,0.1,236.19,236.17,1.30494393]
[1758070426817,1.05901828,236.18,236.17,1.30494393]
[1758070427144,1.05901828,236.18,236.17,34.76494393]
[1758070427944,1.05901828,236.18,236.17,35.4947626]
[1758070429017,1.05901828,236.18,236.17,39.72900064]
[1758070429441,3.89732721,236.18,236.17,40.41900064]
[1758070429612,1.05901828,236.18,236.17,40.41900064]
[1758070429812,3.89528772,236.18,236.17,40.41900064]
[1758070430227,3.89528723,236.18,236.17,39.72900064]
[1758070430540,3.89596906,236.18,236.16,2.0347626]
[1758070430713,1.05901779,236.17,236.16,2.0347626]
[1758070430914,1.05901779,236.17,236.16,35.4547626]
[1758070431244,0.16,236.19,236.16,39.68911409]
[1758070431428,0.16,236.19,236.16,40.37911409]
[1758070432334,1.05901098,236.18,236.16,40.37911409]
[1758070432706,1.05901098,236.17,236.16,37.65435149]
[1758070433009,0.16,236.19,236.16,50.27515745]
[1758070433209,0.16,236.19,236.18,2.0347626]
[1758070433415,2.99729849,236.19,236.18,39.64882136]
[1758070433617,2.99729849,236.19,236.18,40.33882136]
[1758070434429,1.21901907,236.19,236.18,40.33882136]
[1758070436249,0.16,236.19,236.18,40.33882136]
[1758070436415,0.16,236.19,236.18,53.93441537]
[1758070437319,0.16,236.19,236.18,20.55441537]
[1758070437519,0.16,236.19,236.18,53.93441537]
[1758070440730,0.16,236.19,236.18,20.55441537]
[1758070441042,1e-08,236.19,236.18,54.19873851]
[1758070442231,1e-08,236.19,236.18,20.83873851]
[1758070442430,1e-08,236.19,236.18,54.17873851]
[1758070444538,1e-08,236.19,236.18,56.21350111]
[1758070445436,1e-08,236.19,236.18,54.15873851]
[1758070445622,1e-08,236.19,236.18,20.55441537]
[1758070445829,1e-08,236.19,236.18,53.85441537]
[1758070447527,1e-08,236.19,236.18,20.55441537]
[1758070447847,1e-08,236.19,236.18,53.85441537]
[1758070451150,1e-08,236.19,236.18,53.81441537]
[1758070453637,1e-08,236.19,236.18,20.55441537]
[1758070453837,1e-08,236.19,236.18,53.79441537]
[1758070458460,0.06,236.24,236.22,13.59559401]
[1758070458759,0.06,236.24,236.23,48.81035661]
[1758070459143,0.06,236.24,236.23,51.17523596]
[1758070459348,0.1,236.29,236.28,8.88133024]
[1758070459552,2.93865034,236.29,236.28,42.08133024]
[1758070459740,0.1,236.29,236.28,42.08133024]
[1758070459940,2.93865034,236.29,236.28,42.08133024]
[1758070460137,0.1,236.29,236.28,48.34835964]
[1758070460351,0.1,236.29,236.28,62.61395365]